fUST/lending_fUST_20250107
["ID","MTS","AMOUNT","RATE_DAILY","PERIOD"]
[347933254,1736221833050,-505.62341763,0.00019178,2]
[347933255,1736221833060,-500.0,0.00019178,2]
[347933256,1736221833070,-500.7816008,0.00019178,2]
[347933258,1736221833079,-500.0,0.00019178,2]
[347933260,1736221833089,-500.0,0.00019178,2]
[347933261,1736221833098,-500.0,0.00019178,2]
[347933262,1736221833108,-521.2111004,0.00019178,2]
[347933263,1736221833117,-505.22730351,0.00019178,2]
[347933264,1736221833127,-576.07672525,0.00019178,2]
[347933265,1736221833136,-500.0,0.00019178,2]
[347933266,1736221833146,-506.49273994,0.00019178,2]
[347933267,1736221833155,-500.0,0.00019178,2]
[347933268,1736221833164,-500.0,0.00019178,2]
[347933269,1736221833174,-501.56216406,0.00019178,2]
[347933270,1736221833184,-501.60238615,0.00019178,2]
[347933271,1736221833193,-498.86658393,0.00019178,2]
[347933272,1736221833203,-503.77874944,0.00019178,2]
[347933273,1736221833381,-500.0,0.00019178,2]
[347933274,1736221833391,-500.0,0.00019178,2]
[347933275,1736221833403,-500.0,0.00019178,2]
[347933276,1736221833413,-500.0,0.00019178,2]
[347933277,1736221833424,-500.0,0.00019178,2]
[347933278,1736221833434,-500.0,0.00019178,2]
[347933279,1736221833444,-501.88452558,0.00019178,2]
[347933280,1736221833454,-500.0,0.00019178,2]
[347933281,1736221833464,-500.0,0.00019178,2]
[347933282,1736221833474,-500.0,0.00019178,2]
[347933283,1736221833484,-489.90916933,0.00019178,2]
[347933284,1736221833493,-642.06855856,0.00019178,2]
[347933285,1736221833507,-123.45144144,0.00019178,2]
[347933286,1736221833517,-344.58855856,0.00019178,2]
[347933287,1736221833530,-166.54855755,0.00019178,2]
[347933288,1736221833540,-504.5474997,0.00019178,2]
[347933289,1736221833550,-506.86304846,0.00019178,2]
[347933290,1736221833560,-500.0,0.00019178,2]
[347933291,1736221833570,-177.77413955,0.00019178,2]
[347933314,1736221838252,-326.77756373,0.00019178,2]
[347933316,1736221838262,-500.0,0.00019178,2]
[347933318,1736221838271,-503.58904801,0.00019178,2]
[347933320,1736221838281,-500.0,0.00019178,2]
[347933322,1736221838291,-500.0,0.00019178,2]
[347933324,1736221838301,-504.64779304,0.00019178,2]
[347933326,1736221838310,-500.0,0.00019178,2]
[347933327,1736221838320,-501.87398666,0.00019178,2]
[347933328,1736221838330,-500.0,0.00019178,2]
[347933329,1736221838340,-504.23286663,0.00019178,2]
[347933330,1736221838350,-500.0,0.00019178,2]
[347933331,1736221838360,-500.0,0.00019178,2]
[347933332,1736221838371,-500.0,0.00019178,2]
[347933333,1736221838380,-569.04977645,0.00019178,2]
[347933334,1736221838389,-504.50798829,0.00019178,2]
[347933335,1736221838399,-505.15825585,0.00019178,2]
[347933336,1736221838409,-500.0,0.00019178,2]
[347933337,1736221838419,-500.0,0.00019178,2]
[347933338,1736221838429,-514.98,0.00019178,2]
[347933339,1736221838439,-500.0,0.00019178,2]
[347933340,1736221838448,-500.0,0.00019178,2]
[347933341,1736221838458,-539.11527139,0.00019178,2]
[347933342,1736221838467,-500.0,0.00019178,2]
[347933343,1736221838476,-225.10233837,0.00019178,2]
[347933344,1736221838489,-274.89766163,0.00019178,2]
[347933345,1736221838499,-500.0,0.00019178,2]
[347933346,1736221838509,-500.0,0.00019178,2]
[347933347,1736221838518,-369.12067643,0.00019178,2]
[347933348,1736221838530,-133.68885854,0.00019178,2]
[347933349,1736221838539,-697.54,0.00019178,2]
[347933350,1736221838549,-500.0,0.00019178,2]
[347933351,1736221838559,-500.0,0.00019178,2]
[347933352,1736221838569,-500.0,0.00019178,2]
[347933353,1736221838579,-500.0,0.00019178,2]
[347933354,1736221838588,-500.0,0.00019178,2]
[347933355,1736221838598,-723.6,0.00019178,2]
[347933356,1736221838608,-500.0,0.00019178,2]
[347933357,1736221838618,-503.54195776,0.00019178,2]
[347933358,1736221838627,-500.0,0.00019178,2]
[347933359,1736221838638,-578.02395289,0.00019178,2]
[347933360,1736221838647,-500.0,0.00019178,2]
[347933361,1736221838656,-500.0,0.00019178,2]
[347933362,1736221838666,-675.12,0.00019178,2]
[347933363,1736221838675,-231.73666465,0.00019178,2]
[347933364,1736221838689,-324.22683165,0.00019178,2]
[347933365,1736221838700,-20.0865037,0.00019178,2]
[347933366,1736221838710,-500.0,0.00019178,2]
[347933367,1736221838719,-196.4634953,0.00019178,2]
[347933368,1736221838801,-303.5365047,0.00019178,2]
[347933369,1736221838811,-500.0,0.00019178,2]
[347933370,1736221838821,-500.0,0.00019178,2]
[347933371,1736221838831,-502.80891082,0.00019178,2]
[347933372,1736221838840,-500.0,0.00019178,2]
[347933373,1736221838850,-500.0,0.00019178,2]
[347933374,1736221838859,-500.0,0.00019178,2]
[347933375,1736221838873,-500.0,0.00019178,2]
[347933376,1736221838883,-531.45819254,0.00019178,2]
[347933377,1736221838892,-500.0,0.00019178,2]
[347933378,1736221838902,-500.0,0.00019178,2]
[347933379,1736221838912,-500.0,0.00019178,2]
[347933380,1736221838922,-500.0,0.00019178,2]
[347933381,1736221838931,-457.97271268,0.00019178,2]
[347933382,1736221838941,-503.25012911,0.00019178,2]
[347933383,1736221838951,-500.0,0.00019178,2]
[347933384,1736221838960,-500.0,0.00019178,2]
[347933385,1736221838969,-500.0,0.00019178,2]
[347933386,1736221838978,-508.73592427,0.00019178,2]
[347933387,1736221838987,-500.0,0.00019178,2]
[347933388,1736221838996,-514.28035311,0.00019178,2]
[347933389,1736221839006,-505.08780129,0.00019178,2]
[347933390,1736221839015,-513.76108104,0.00019178,2]
[347933391,1736221839025,-500.0,0.00019178,2]
[347933392,1736221839034,-506.54404665,0.00019178,2]
[347933393,1736221839043,-503.29135277,0.00019178,2]
[347933394,1736221839052,-500.0,0.00019178,2]
[347933395,1736221839062,-500.0,0.00019178,2]
[347933396,1736221839071,-515.10105503,0.00019178,2]
[347933397,1736221839080,-500.0,0.00019178,2]
[347933398,1736221839089,-503.55,0.00019178,2]
[347933399,1736221839099,-500.0,0.00019178,2]
[347933400,1736221839108,-500.0,0.00019178,2]
[347933401,1736221839118,-500.0,0.00019178,2]
[347933402,1736221839127,-500.0,0.00019178,2]
[347933403,1736221839137,-500.0,0.00019178,2]
[347933404,1736221839147,-500.0,0.00019178,2]
[347933405,1736221839156,-500.0,0.00019178,2]
[347933406,1736221839165,-500.0,0.00019178,2]
[347933407,1736221839175,-500.0,0.00019178,2]
[347933408,1736221839184,-500.0,0.00019178,2]
[347933409,1736221839193,-505.09473128,0.00019178,2]
[347933410,1736221839203,-3345.77065104,0.00019178,2]
[347933411,1736221839216,-22.78934896,0.00019178,2]
[347933412,1736221839227,-502.8002774,0.00019178,2]
[347933413,1736221839236,-106.47760197,0.00019178,2]
[347933475,1736221840522,-398.46889614,0.00019178,2]
[347933477,1736221840532,-101.53110386,0.00019178,2]
[347934144,1736221908314,207.32782,0.00013973,2]
[347934145,1736222476425,154.86,0.00025,120]
[347934146,1736222825141,-450.0,0.00016732,2]
[347934147,1736222831138,-1466.56631393,0.00016732,2]
[347934148,1736222831162,-200.0,0.00016901,2]
[347934149,1736222831187,-407.890906,0.00018133,2]
[347934150,1736222831211,-461.769,0.00019,2]
[347934151,1736222831233,-152.33539032,0.00019177,2]
[347934152,1736222831253,-286.063,0.00019177,2]
[347934153,1736222831275,-300.0,0.00019177,2]
[347934154,1736222831297,-500.0,0.00019177,2]
[347934155,1736222831318,-8708.49555929,0.00019178,2]
[347934167,1736223004462,215.418527,0.00013973,2]
[347934215,1736223032362,-303.945321,0.00018181,2]
[347934217,1736223032372,-10.33922467,0.00019,2]
[347934219,1736223032384,-292.5093692,0.00019,2]
[347934221,1736223032393,-302.93942122,0.00019,2]
[347934223,1736223032402,-300.0,0.00019177,2]
[347934225,1736223032412,-8011.42793134,0.00019178,2]
[347934228,1736223032423,-5269.27355902,0.00019178,2]
[347934230,1736223032432,-4577.72745528,0.00019178,2]
[347934235,1736223032468,-669.49843418,0.00019178,2]
[347934237,1736223032479,-4200.77559619,0.00019178,2]
[347934756,1736223038230,-314.74,0.00019178,2]
[347934758,1736223038242,-807.3147242,0.00019178,2]
[347934764,1736223038286,-12485.08386649,0.00019178,2]
[347934773,1736223038363,-500.0,0.00019178,2]
[347935138,1736223041958,-567.648933,0.00019178,2]
[347935139,1736223041971,-1703.88250269,0.00019178,2]
[347935413,1736223046374,-2198.43326375,0.00019178,2]
[347935415,1736223314254,544.65,0.00025,120]
[347935417,1736223967820,610.21259277,0.00014989,2]
[347935418,1736223968134,610.21259277,0.00014998,2]
[347935419,1736223968421,610.21259277,0.00014999,2]
[347935420,1736223975260,288.436573,0.00013973,2]
[347935421,1736224053139,-1248.31201695,0.00016273,2]
[347935422,1736224158131,-3647.73064765,0.00015949,2]
[347935423,1736224158153,-3319.95629027,0.0001611,2]
[347935424,1736224158173,-682.74567,0.00016688,2]
[347935425,1736224158194,-300.0,0.00016939,2]
[347935426,1736224158214,-4401.4924524,0.0001694,2]
[347935427,1736224158234,-3387.99029236,0.00017,2]
[347935428,1736224158266,-327.28522332,0.00017,2]
[347935429,1736224158286,-4462.5158753,0.00017568,2]
[347935430,1736224158307,-729.0913185,0.00017591,2]
[347935431,1736224158327,-747.7645487,0.00017603,2]
[347935483,1736224232537,-300.0,0.00018113,2]
[347935484,1736224232547,-983.2002623,0.00018114,2]
[347935486,1736224232559,-23916.7997377,0.00018114,2]
[347935488,1736224232567,-6742.9044653,0.000182,2]
[347935489,1736224232577,-6742.90446513,0.000182,2]
[347935490,1736224232586,-2965.03356606,0.00018309,2]
[347935492,1736224232600,-6782.5205188,0.00018309,2]
[347935550,1736224238314,-500.0,0.00018308,2]
[347935552,1736224238324,-500.0,0.00018308,2]
[347935553,1736224238333,-500.0,0.00018308,2]
[347935554,1736224238343,-500.0,0.00018308,2]
[347935555,1736224238351,-500.0,0.00018308,2]
[347935556,1736224238361,-500.0,0.00018308,2]
[347935557,1736224238371,-500.0,0.00018308,2]
[347935558,1736224238381,-500.0,0.00018308,2]
[347935559,1736224238391,-500.0,0.00018308,2]
[347935560,1736224238400,-470.80763348,0.00018308,2]
[347935561,1736224238410,-505.63400589,0.00018308,2]
[347935562,1736224238420,-500.0,0.00018308,2]
[347935563,1736224238430,-500.0,0.00018308,2]
[347935564,1736224238439,-500.0,0.00018308,2]
[347935565,1736224238448,-500.0,0.00018308,2]
[347935566,1736224238458,-250.58769792,0.00018308,2]
[347935568,1736224238468,-500.0,0.00018308,2]
[347935569,1736224238477,-500.0,0.00018308,2]
[347935570,1736224238487,-500.0,0.00018308,2]
[347935571,1736224238497,-306.81431915,0.00018308,2]
[347935572,1736224238506,-500.0,0.00018308,2]
[347935573,1736224238516,-500.0,0.00018308,2]
[347935574,1736224238529,-500.0,0.00018308,2]
[347935575,1736224238538,-8870.44460433,0.00018309,2]
[347935576,1736224238548,-51076.87328084,0.00018309,2]
[347935577,1736224238561,-20836.96849235,0.00018309,2]
[347935578,1736224238572,-2415.68464,0.00018309,2]
[347935579,1736224238583,-793.09250874,0.00018309,2]
[347935620,1736224240442,-92918.02067074,0.00018309,2]
[347935622,1736224240451,-6742.90446513,0.00018314,2]
[347935624,1736224240460,-225.29402047,0.00018424,2]
[347935625,1736224240469,-6742.90446513,0.00018521,2]
[347935628,1736224240479,-10467.37643984,0.00018647,2]
[347935630,1736224240488,-6742.90446513,0.00018728,2]
[347935631,1736224240497,-161.260574,0.00018728,2]
[347935633,1736224240507,-263.998369,0.00018728,2]
[347935635,1736224240518,-263.998369,0.00018728,2]
[347935637,1736224240531,-151.0,0.00018728,2]
[347935639,1736224240540,-151.0,0.00018728,2]
[347935641,1736224240549,-151.0,0.00018728,2]
[347935643,1736224240558,-404.29547391,0.000188,2]
[347935645,1736224240568,-6742.90446513,0.00018934,2]
[347935647,1736224240577,-10467.37643984,0.00018964,2]
[347935649,1736224240587,-228.85,0.00018992,2]
[347935651,1736224240598,-462.683,0.00019,2]
[347935653,1736224240607,-366.4565792,0.00019,2]
[347935655,1736224240616,-17510.83266368,0.00019,3]
[347935657,1736224240626,-302.9394212,0.00019,2]
[347935659,1736224240635,-151.0,0.00019079,2]
[347935661,1736224240644,-6742.90446513,0.00019141,2]
[347935663,1736224240653,-500.0,0.00019173,2]
[347935665,1736224240662,-153.072736,0.00019175,2]
[347935667,1736224240671,-151.0,0.00019175,2]
[347935669,1736224240681,-151.0,0.00019175,2]
[347935670,1736224240691,-151.0,0.00019175,2]
[347935671,1736224240700,-154.23,0.00019177,2]
[347935673,1736224240709,-254.5560828,0.00019178,2]
[347935675,1736224240718,-151.0,0.00019178,2]
[347935677,1736224240727,-324.572638,0.00019178,2]
[347935679,1736224240736,-324.572638,0.00019178,2]
[347935681,1736224240747,-151.0,0.00019178,2]
[347935683,1736224240757,-1037.344465,0.00019178,2]
[347935685,1736224240767,-1037.344465,0.00019178,2]
[347935687,1736224240776,-151.0,0.00019178,2]
[347935689,1736224240786,-151.0,0.00019178,2]
[347935690,1736224240795,-260.593337,0.00019178,2]
[347935691,1736224240804,-662.91936,0.00019178,2]
[347935693,1736224240813,-662.91936,0.00019178,2]
[347935695,1736224240822,-154.023048,0.00019178,2]
[347935698,1736224240831,-413.436015,0.00019178,2]
[347935699,1736224240840,-188.965576,0.00019178,2]
[347935701,1736224240850,-188.965576,0.00019178,2]
[347935702,1736224240859,-151.0,0.00019178,2]
[347935703,1736224240867,-151.0,0.00019178,2]
[347935704,1736224240876,-151.0,0.00019178,2]
[347935705,1736224240886,-151.0,0.00019178,2]
[347935706,1736224240895,-151.0,0.00019178,2]
[347935707,1736224240905,-923.929729,0.00019178,2]
[347935708,1736224240914,-923.929729,0.00019178,2]
[347935709,1736224240923,-151.0,0.00019178,2]
[347935710,1736224240932,-151.0,0.00019178,2]
[347935711,1736224240941,-248.673809,0.00019178,2]
[347935712,1736224240950,-248.673809,0.00019178,2]
[347935713,1736224240959,-151.0,0.00019178,2]
[347935714,1736224240969,-503.18845023,0.00019178,2]
[347935715,1736224240978,-151.0,0.00019178,2]
[347935716,1736224240988,-501.68406922,0.00019178,2]
[347935717,1736224240997,-613.95973707,0.00019178,2]
[347935718,1736224241006,-203.62574503,0.00019178,2]
[347935719,1736224241015,-157.27267,0.00019178,2]
[347935720,1736224241025,-157.27267,0.00019178,2]
[347935721,1736224241034,-157.27267,0.00019178,2]
[347935722,1736224241043,-157.27267,0.00019178,2]
[347935723,1736224241052,-151.236053,0.00019178,2]
[347935724,1736224241061,-500.0,0.00019178,2]
[347935725,1736224241071,-500.0,0.00019178,2]
[347935726,1736224241080,-532.9046647,0.00019178,2]
[347935727,1736224241089,-500.0,0.00019178,2]
[347935728,1736224241099,-464.31814804,0.00019178,2]
[347935729,1736224241108,-500.0,0.00019178,2]
[347935730,1736224241117,-520.29482421,0.00019178,2]
[347935731,1736224241127,-152.625609,0.00019178,2]
[347935732,1736224241136,-151.0,0.00019178,2]
[347935733,1736224241145,-151.0,0.00019178,2]
[347935734,1736224241155,-508.5261156,0.00019178,2]
[347935735,1736224241164,-200.0,0.00019178,2]
[347935736,1736224241173,-500.0,0.00019178,2]
[347935737,1736224241182,-500.0,0.00019178,2]
[347935738,1736224241191,-508.09078775,0.00019178,2]
[347935739,1736224241202,-507.87020141,0.00019178,2]
[347935740,1736224241211,-504.1541852,0.00019178,2]
[347935741,1736224241220,-475.5368826,0.00019178,2]
[347935742,1736224241229,-500.0,0.00019178,2]
[347935743,1736224241240,-510.44062713,0.00019178,2]
[347935744,1736224241249,-500.0,0.00019178,2]
[347935745,1736224241258,-507.50696637,0.00019178,2]
[347935746,1736224241267,-500.0,0.00019178,2]
[347935747,1736224241276,-505.03049415,0.00019178,2]
[347935748,1736224241285,-673.392999,0.00019178,2]
[347935749,1736224241295,-673.392999,0.00019178,2]
[347935750,1736224241304,-673.392999,0.00019178,2]
[347935751,1736224241313,-500.0,0.00019178,2]
[347935752,1736224241322,-673.392999,0.00019178,2]
[347935753,1736224241331,-500.0,0.00019178,2]
[347935754,1736224241340,-505.63660975,0.00019178,2]
[347935755,1736224241349,-512.9582299,0.00019178,2]
[347935756,1736224241358,-247.48290437,0.00019178,2]
[347935757,1736224241368,-500.0,0.00019178,2]
[347935758,1736224241377,-500.0,0.00019178,2]
[347935759,1736224241394,-500.0,0.00019178,2]
[347935760,1736224241403,-500.0,0.00019178,2]
[347935761,1736224241412,-500.0,0.00019178,2]
[347935762,1736224241421,-500.0,0.00019178,2]
[347935763,1736224241431,-501.95784096,0.00019178,2]
[347935764,1736224241440,-500.0,0.00019178,2]
[347935765,1736224241449,-516.76589008,0.00019178,2]
[347935766,1736224241459,-501.41008848,0.00019178,2]
[347935767,1736224241468,-509.28348436,0.00019178,2]
[347935768,1736224241477,-500.0,0.00019178,2]
[347935769,1736224241485,-372.63681492,0.00019178,2]
[347935770,1736224241495,-509.86191747,0.00019178,2]
[347935771,1736224241504,-496.86170148,0.00019178,2]
[347935772,1736224241514,-500.0,0.00019178,2]
[347935773,1736224241527,-500.0,0.00019178,2]
[347935774,1736224241535,-502.42342639,0.00019178,2]
[347935775,1736224241545,-500.0,0.00019178,2]
[347935776,1736224241553,-502.03104918,0.00019178,2]
[347935777,1736224241563,-500.0,0.00019178,2]
[347935778,1736224241573,-500.0,0.00019178,2]
[347935779,1736224241581,-500.0,0.00019178,2]
[347935780,1736224241591,-500.0,0.00019178,2]
[347935781,1736224241600,-505.23002728,0.00019178,2]
[347935782,1736224241610,-500.0,0.00019178,2]
[347935783,1736224241619,-500.86920216,0.00019178,2]
[347935784,1736224241628,-500.0,0.00019178,2]
[347935785,1736224241637,-500.0,0.00019178,2]
[347935786,1736224241647,-239.43632409,0.00019178,2]
[347935787,1736224241656,-500.0,0.00019178,2]
[347935788,1736224241665,-352.85745037,0.00019178,2]
[347935789,1736224241675,-500.0,0.00019178,2]
[347935790,1736224241683,-500.0,0.00019178,2]
[347935791,1736224241692,-500.0,0.00019178,2]
[347935792,1736224241701,-500.0,0.00019178,2]
[347935793,1736224241711,-500.0,0.00019178,2]
[347935794,1736224241720,-500.0,0.00019178,2]
[347935795,1736224241729,-500.74285941,0.00019178,2]
[347935796,1736224241739,-500.0,0.00019178,2]
[347935797,1736224241749,-151.0,0.00019178,2]
[347935798,1736224241759,-151.0,0.00019178,2]
[347935799,1736224241768,-151.0,0.00019178,2]
[347935800,1736224241778,-310.86466851,0.00019178,2]
[347935801,1736224241787,-158.800107,0.00019178,2]
[347935802,1736224241796,-500.0,0.00019178,2]
[347935803,1736224241805,-505.56955434,0.00019178,2]
[347935804,1736224241815,-503.39767878,0.00019178,2]
[347935805,1736224241824,-500.0,0.00019178,2]
[347935806,1736224241833,-500.0,0.00019178,2]
[347935807,1736224241842,-500.0,0.00019178,2]
[347935808,1736224241852,-500.0,0.00019178,2]
[347935809,1736224241861,-500.0,0.00019178,2]
[347935810,1736224241870,-500.0,0.00019178,2]
[347935811,1736224241879,-504.54999587,0.00019178,2]
[347935812,1736224241888,-500.0,0.00019178,2]
[347935813,1736224241898,-500.0,0.00019178,2]
[347935814,1736224241907,-500.0,0.00019178,2]
[347935815,1736224241916,-500.0,0.00019178,2]
[347935816,1736224241926,-500.0,0.00019178,2]
[347935817,1736224241935,-500.0,0.00019178,2]
[347935818,1736224241944,-500.0,0.00019178,2]
[347935819,1736224241953,-500.0,0.00019178,2]
[347935820,1736224241963,-500.0,0.00019178,2]
[347935821,1736224241972,-500.0,0.00019178,2]
[347935822,1736224241981,-500.2959187,0.00019178,2]
[347935823,1736224241990,-482.350348,0.00019178,2]
[347935824,1736224241999,-482.350348,0.00019178,2]
[347935825,1736224242009,-512.70600189,0.00019178,2]
[347935826,1736224242018,-482.350348,0.00019178,2]
[347935827,1736224242027,-510.30120774,0.00019178,2]
[347935828,1736224242036,-482.350348,0.00019178,2]
[347935829,1736224242045,-502.20294352,0.00019178,2]
[347935830,1736224242055,-500.0,0.00019178,2]
[347935831,1736224242064,-500.0,0.00019178,2]
[347935832,1736224242073,-907.188852,0.00019178,2]
[347935833,1736224242082,-907.188852,0.00019178,2]
[347935834,1736224242222,-907.188852,0.00019178,2]
[347935835,1736224242232,-907.188852,0.00019178,2]
[347935836,1736224242241,-907.188852,0.00019178,2]
[347935837,1736224242250,-907.188852,0.00019178,2]
[347935838,1736224242260,-506.91268819,0.00019178,2]
[347935839,1736224242270,-500.0,0.00019178,2]
[347935840,1736224242279,-907.188852,0.00019178,2]
[347935841,1736224242288,-907.188852,0.00019178,2]
[347935842,1736224242298,-907.188852,0.00019178,2]
[347935843,1736224242307,-907.188852,0.00019178,2]
[347935844,1736224242316,-907.188852,0.00019178,2]
[347935845,1736224242326,-500.0,0.00019178,2]
[347935846,1736224242335,-907.188852,0.00019178,2]
[347935847,1736224242344,-253.103766,0.00019178,2]
[347935848,1736224242354,-253.103766,0.00019178,2]
[347935849,1736224242363,-253.103766,0.00019178,2]
[347935850,1736224242372,-500.0,0.00019178,2]
[347935851,1736224242383,-253.103766,0.00019178,2]
[347935852,1736224242392,-253.103766,0.00019178,2]
[347935853,1736224242402,-253.103766,0.00019178,2]
[347935854,1736224242411,-512.72766746,0.00019178,2]
[347935855,1736224242420,-253.103766,0.00019178,2]
[347935856,1736224242429,-253.103766,0.00019178,2]
[347935857,1736224242439,-253.103766,0.00019178,2]
[347935858,1736224242448,-253.103766,0.00019178,2]
[347935859,1736224242457,-253.103766,0.00019178,2]
[347935860,1736224242466,-253.103766,0.00019178,2]
[347935861,1736224242476,-504.13100122,0.00019178,2]
[347935862,1736224242485,-253.103766,0.00019178,2]
[347935863,1736224242494,-253.103766,0.00019178,2]
[347935864,1736224242504,-503.80824265,0.00019178,2]
[347935865,1736224242513,-500.0,0.00019178,2]
[347935866,1736224242525,-181.255812,0.00019178,2]
[347935867,1736224242534,-513.46938706,0.00019178,2]
[347935868,1736224242544,-500.0,0.00019178,2]
[347935869,1736224242553,-816.75,0.00019178,2]
[347935870,1736224242564,-509.21286976,0.00019178,2]
[347935871,1736224242573,-500.0,0.00019178,2]
[347935872,1736224242583,-500.0,0.00019178,2]
[347935873,1736224242592,-503.22553002,0.00019178,2]
[347935874,1736224242604,-500.0,0.00019178,2]
[347935875,1736224242614,-500.0,0.00019178,2]
[347935876,1736224242623,-568.07182654,0.00019178,2]
[347935877,1736224242632,-500.0,0.00019178,2]
[347935878,1736224242642,-547.16,0.00019178,2]
[347935879,1736224242651,-500.0,0.00019178,2]
[347935880,1736224242660,-290.638468,0.00019178,2]
[347935881,1736224242669,-290.638468,0.00019178,2]
[347935882,1736224242679,-500.0,0.00019178,2]
[347935883,1736224242689,-290.638468,0.00019178,2]
[347935884,1736224242698,-500.0,0.00019178,2]
[347935885,1736224242707,-290.638468,0.00019178,2]
[347935886,1736224242716,-290.638468,0.00019178,2]
[347935887,1736224242725,-290.638468,0.00019178,2]
[347935888,1736224242735,-584.11,0.00019178,2]
[347935889,1736224242744,-290.638468,0.00019178,2]
[347935890,1736224242753,-290.638468,0.00019178,2]
[347935891,1736224242762,-290.638468,0.00019178,2]
[347935892,1736224242772,-290.638468,0.00019178,2]
[347935893,1736224242781,-290.638468,0.00019178,2]
[347935894,1736224242790,-500.0,0.00019178,2]
[347935896,1736224242799,-290.638468,0.00019178,2]
[347935897,1736224242810,-290.638468,0.00019178,2]
[347935898,1736224242819,-290.638468,0.00019178,2]
[347935899,1736224242828,-290.638468,0.00019178,2]
[347935900,1736224242838,-290.638468,0.00019178,2]
[347935901,1736224242847,-505.74926296,0.00019178,2]
[347935902,1736224242856,-500.0,0.00019178,2]
[347935903,1736224242866,-151.0,0.00019178,2]
[347935904,1736224242875,-738.31,0.00019178,2]
[347935905,1736224242885,-151.0,0.00019178,2]
[347935906,1736224242894,-151.0,0.00019178,2]
[347935907,1736224242903,-151.0,0.00019178,2]
[347935908,1736224242913,-151.0,0.00019178,2]
[347935909,1736224242922,-151.0,0.00019178,2]
[347935910,1736224242931,-151.0,0.00019178,2]
[347935911,1736224242940,-500.0,0.00019178,2]
[347935912,1736224242949,-151.0,0.00019178,2]
[347935914,1736224242959,-183.464454,0.00019178,2]
[347935915,1736224242969,-412.93568393,0.00019178,2]
[347935916,1736224242978,-193.274336,0.00019178,2]
[347935917,1736224242987,-193.274336,0.00019178,2]
[347935918,1736224242996,-705.76,0.00019178,2]
[347935919,1736224243005,-193.274336,0.00019178,2]
[347935920,1736224243015,-193.274336,0.00019178,2]
[347935921,1736224243024,-500.0,0.00019178,2]
[347935922,1736224243033,-500.0,0.00019178,2]
[347935923,1736224243042,-506.25289388,0.00019178,2]
[347935924,1736224243052,-273.086516,0.00019178,2]
[347935925,1736224243061,-273.086516,0.00019178,2]
[347935926,1736224243070,-273.086516,0.00019178,2]
[347935927,1736224243079,-273.086516,0.00019178,2]
[347935928,1736224243089,-273.086516,0.00019178,2]
[347935929,1736224243098,-500.0,0.00019178,2]
[347935930,1736224243108,-273.086516,0.00019178,2]
[347935932,1736224243117,-273.086516,0.00019178,2]
[347935934,1736224243126,-273.086516,0.00019178,2]
[347935936,1736224243136,-783.84,0.00019178,2]
[347935938,1736224243146,-273.086516,0.00019178,2]
[347935940,1736224243155,-273.086516,0.00019178,2]
[347935942,1736224243164,-273.086516,0.00019178,2]
[347935944,1736224243173,-273.086516,0.00019178,2]
[347935946,1736224243182,-500.0,0.00019178,2]
[347935948,1736224243192,-389.555747,0.00019178,2]
[347935950,1736224243201,-500.0,0.00019178,2]
[347935952,1736224243210,-389.555747,0.00019178,2]
[347935954,1736224243219,-389.555747,0.00019178,2]
[347935956,1736224243228,-389.555747,0.00019178,2]
[347935958,1736224243238,-389.555747,0.00019178,2]
[347935960,1736224243247,-389.555747,0.00019178,2]
[347935962,1736224243256,-389.555747,0.00019178,2]